Cogmind - Beta 13 @@@ ROGUE MODE // 2024.05.10 @ 22:23:26 Player: CONM Result: Destroyed by G-47 Trooper with Particle Gun Performance ------------- Evolutions (2) 1000 Regions Visited (4) 800 Robots Destroyed (32) 160 Value Destroyed (591) 591 Prototype IDs (1) 20 Alien Tech Used (0) 0 Bonus (0) 0 TOTAL SCORE: 2571 Bonus ------- None Cogmind --------- Core Integrity 0/550 Matter 261/300 Energy 100/100 System Corruption 0% Temperature Cool (9) Movement Walking (130) Location -8/Materials Parts ------- > --- POWER (2) -------- (None) > --- PROPULSION (3) --- Titanium Leg > --- UTILITY (4) ------ (None) > --- WEAPON (2) ------- (None) > --- INVENTORY (5) ---- Aluminum Leg Improved Aluminum Leg Advanced Weight Redist. System Reaction Control System Peak State ------------ > --- POWER ------------ Light Ion Engine > --- PROPULSION ------- Aluminum Leg Aluminum Leg Aluminum Leg > --- UTILITY ---------- Medium Storage Unit Seismic Detector Improved Targeting Computer Core Shielding > --- WEAPON ----------- Improved Assault Rifle Grenade Launcher > --- INVENTORY -------- Aluminum Leg Improved Aluminum Leg Advanced Weight Redist. System [Rating: 13] Favorites ----------- Power Light Ion Engine Engine Light Ion Engine Propulsion Aluminum Leg Leg Aluminum Leg Wheel Wheel Utility Core Shielding Device Improved Terrain Scanner Storage Medium Storage Unit Processor Improved Targeting Computer Protection Core Shielding Weapon Assault Rifle Ballistic Gun Assault Rifle Launcher Grenade Launcher Build | -11 -10 -10 -9 -8 ------- Run | Yrd Mat Min Mat Mat Slots Evolved 4 | . . . 2 2 Power 1 | . . . . 1 Propulsion 1 | . . . 1 . Utility 2 | . . . 1 1 Weapon . | . . . . . Parts Attached 23 | 7 5 2 5 4 Power 2 | 1 . . 1 . Engine 2 | 1 . . 1 . Core . | . . . . . Reactor . | . . . . . Propulsion 8 | 2 2 1 1 2 Treads . | . . . . . Leg 6 | . 2 1 1 2 Wheel 2 | 2 . . . . Hover . | . . . . . Flight . | . . . . . Utility 7 | 2 2 . 2 1 Device 3 | 1 . . 2 . Storage 2 | 1 1 . . . Processor 1 | . . . . 1 Hackware . | . . . . . Protection 1 | . 1 . . . Artifact . | . . . . . Weapon 6 | 2 1 1 1 1 Energy Gun . | . . . . . Energy Cannon . | . . . . . Ballistic Gun 3 | 2 . . . 1 Ballistic Cannon . | . . . . . Launcher 3 | . 1 1 1 . Special Weapon . | . . . . . Impact Weapon . | . . . . . Slashing Weapon . | . . . . . Piercing Weapon . | . . . . . Special Melee Weapon . | . . . . . Unidentified Prototypes 1 | . . . . 1 Parts Lost 15 | . 1 1 4 9 Power 2 | . . . 1 1 Propulsion 5 | . 1 . 1 3 Utility 3 | . . . . 3 Weapon 5 | . . 1 2 2 Highest Loss Streak 9 | . 1 1 3 9 To Critical Strikes . | . . . . . Average Slot Usage (%) 84 | . 96 90 83 54 Engine 11 | . 14 14 8 5 Leg 22 | . 25 18 28 15 Device 5 | . 7 . 7 5 Storage 12 | . 14 14 11 7 Protection 9 | . 6 14 11 7 Ballistic Gun 11 | . 18 14 6 3 Launcher 10 | . 9 14 10 6 Naked Turns 13 | . . . . 13 Heaviest Build 21 | 12 19 19 20 21 Greatest Support 30 | 20 20 20 30 30 Greatest Overweight (x) 6 | 1 1 1 . 6 Average Overweight (x) . | . . . . . Largest Inventory Capacity 10 | 8 10 10 10 10 Average Capacity 9 | 7 8 10 10 8 Most Carried 8 | 4 8 8 7 4 Average Carried 5 | 2 7 7 5 3 Final Capacity 10 | 8 10 10 10 5 Final Carried 8 | 3 8 7 4 4 Class Distribution -------------------- 100% | Mutant Dominant Class ---------------- Mutant | -10/Materials Mutant | -10/Mines Mutant | -9/Materials Mutant | -8/Materials Resources | -11 -10 -10 -9 -8 ----------- Run | Yrd Mat Min Mat Mat Matter Collected 699 | 243 203 131 73 49 Remotely . | . . . . . Salvage Created 601 | 15 330 124 77 55 Parts 69 | 3 40 10 13 3 Haulers Intercepted 1 | . . . . 1 Recyclers Shooed 5 | . 3 2 . . Parts Field Recycled . | . . . . . Retrieved Matter . | . . . . . Parts Self-Destructed . | . . . . . Prevented . | . . . . . Kills | -11 -10 -10 -9 -8 ------- Run | Yrd Mat Min Mat Mat Combat Hostiles Destroyed 19 | . 10 5 4 . Guns 4 | . 4 . . . AOE 15 | . 6 5 4 . Classes Destroyed 9 | 1 6 . 1 1 Worker 3 | . 2 . . 1 Builder 5 | . 3 1 1 . Tunneler 2 | 1 . 1 . . Hauler 1 | . . . . 1 Recycler 1 | . 1 . . . Operator 1 | . 1 . . . Swarmer 8 | . 3 3 2 . Grunt 9 | . 7 2 . . Sentry 2 | . . . 2 . Best Kill Streak 8 | 1 8 5 3 1 Combat Bots Only 3 | . 3 3 3 . Max Kills in Single Turn 3 | 1 3 3 2 1 Gunslinging . | . . . . . Exploded 2 | . 1 2 2 . Melee . | . . . . . Uniques/NPCs Destroyed . | . . . . . Combat | -11 -10 -10 -9 -8 -------- Run | Yrd Mat Min Mat Mat Hostile Shots Fired 225 | . 53 22 30 120 Missed 80 | . 18 9 9 44 Damage Taken 2038 | . 410 123 379 1126 Core 736 | . 114 7 62 553 Absorbed by Shields . | . . . . . Redirected to Shielding 51 | . 6 1 15 29 Core Remaining (%) 78 | 100 . 51 84 . Volleys Fired 50 | 13 16 7 7 7 Largest 2 | 2 2 2 2 1 Hottest 50 | 40 50 50 50 30 Shots Fired 89 | 26 32 14 10 7 Gun 62 | 26 21 7 3 5 Cannon . | . . . . . Launcher 27 | . 11 7 7 2 Special . | . . . . . Kinetic 62 | 26 21 7 3 5 Thermal . | . . . . . Explosive 27 | . 11 7 7 2 Electromagnetic . | . . . . . Robot Hit Streak 10 | 6 6 1 5 10 Robot Miss Streak 7 | 2 2 7 2 . Penetration Max . | . . . . . Secondary Targets . | . . . . . Shots Hit Robots 52 | 16 20 2 8 6 Core Hits 53 | 2 28 8 8 7 Critical Kills . | . . . . . Critical Parts Destroyed 1 | . 1 . . . Critical Strikes 1 | . 1 . . . Destroy 1 | . 1 . . . Melee Attacks . | . . . . . Impact . | . . . . . Slashing . | . . . . . Piercing . | . . . . . Sneak Attacks . | . . . . . Combat Hostiles . | . . . . . Follow-up Attacks . | . . . . . Damage Inflicted 1912 | 172 918 399 251 172 Guns 429 | 172 147 11 23 76 Cannons . | . . . . . Explosions 1430 | . 771 375 228 56 Melee . | . . . . . Ramming 53 | . . 13 . 40 Kinetic 429 | 172 147 11 23 76 Thermal . | . . . . . Explosive 1430 | . 771 375 228 56 Electromagnetic . | . . . . . Impact . | . . . . . Slashing . | . . . . . Piercing . | . . . . . Highest Corruption . | . . . . . Average Corruption . | . . . . . Corruption Purged . | . . . . . Corruption Blocked . | . . . . . Overload Shots . | . . . . . Overflow Damage 18 | . . 10 8 . Projectiles . | . . . . . Explosions 18 | . . 10 8 . Melee . | . . . . . Knockbacks . | . . . . . Impact . | . . . . . Kinetic . | . . . . . Secondary . | . . . . . Self-Inflicted Damage 162 | . . 12 119 31 Shots 9 | . . 1 7 1 Rammed 3 | . . . . 3 Targets Rammed 12 | . . 2 . 10 Kicked 9 | . . 2 . 7 Crushed . | . . . . . Highest Temperature 8 | . 8 2 1 4 Average Temperature 3 | . 4 2 1 2 Received Heat Transfer 792 | . 195 12 63 522 Siege Activations . | . . . . . Robots Corrupted . | . . . . . Combat Hostiles . | . . . . . Parts Fried . | . . . . . Impact Corruptions . | . . . . . Robots Melted . | . . . . . Combat Hostiles . | . . . . . Parts Melted . | . . . . . Heat Transferred . | . . . . . Parts Sabotaged . | . . . . . Parts Stolen . | . . . . . Parts Stripped . | . . . . . Power Chain Reactions . | . . . . . Alert | -11 -10 -10 -9 -8 ------- Run | Yrd Mat Min Mat Mat Peak Influence 355 | 5 355 296 281 195 Initial 138 | . 3 138 115 118 Average 148 | . 134 244 197 133 Maximum Alert Level 1 | . 1 1 1 . Low Security (%) 67 | 100 75 13 61 100 Level 1 32 | . 24 86 38 . Level 2 . | . . . . . Level 3 . | . . . . . Level 4 . | . . . . . Level 5 . | . . . . . High Security . | . . . . . Max Security . | . . . . . Squads Dispatched 4 | . 1 . . 3 Investigation 1 | . . . . 1 Extermination . | . . . . . Reinforcement 3 | . 1 . . 2 Assault . | . . . . . Garrison . | . . . . . Intercept . | . . . . . Searches Triggered . | . . . . . Construction Impeded . | . . . . . Haulers Reinforced . | . . . . . Active Scanning Responses . | . . . . . Cargo Convoy Interrupts . | . . . . . Stealth | -11 -10 -10 -9 -8 --------- Run | Yrd Mat Min Mat Mat Distress Signals 5 | . 4 . . 1 Communications Jammed . | . . . . . Distress Signals . | . . . . . Times Spotted 62 | . 20 5 9 28 Peak Tracking Total 23 | . 9 3 6 23 Tactical Retreats 5 | . 1 . 1 3 Traps | -11 -10 -10 -9 -8 ------- Run | Yrd Mat Min Mat Mat Traps Triggered 2 | . 1 . . 1 Indirectly . | . . . . . Trap Hack Attempts . | . . . . . Triggered . | . . . . . Disarmed . | . . . . . Reprogrammed . | . . . . . Reused . | . . . . . Traps Extracted . | . . . . . Installed . | . . . . . Triggered . | . . . . . Machines | -11 -10 -10 -9 -8 ---------- Run | Yrd Mat Min Mat Mat Machines Disabled 1 | . 1 . . . Max in Single Turn 1 | . 1 . . . Machines Repaired . | . . . . . Machines Dismantled . | . . . . . Machines Sabotaged . | . . . . . Overloaded Fab Kills . | . . . . . Hacking | -11 -10 -10 -9 -8 --------- Run | Yrd Mat Min Mat Mat Machines Accessed 3 | . 1 . 1 1 Terminals 3 | . 1 . 1 1 Fabricators . | . . . . . Repair Stations . | . . . . . Recycling Units . | . . . . . Scanalyzers . | . . . . . Garrison Access . | . . . . . Total Hacks 4 | . 1 . 1 2 Successful 3 | . 1 . 1 1 Failed 1 | . . . . 1 Catastrophic . | . . . . . Database Lockouts . | . . . . . Manual 2 | . 2 . . . Terminals 4 | . 1 . 1 2 Fabricators . | . . . . . Repair Stations . | . . . . . Recycling Units . | . . . . . Scanalyzers . | . . . . . Garrison Access . | . . . . . Terminal Hacks 3 | . 1 . 1 1 Record 1 | . . . . 1 Transport Status 1 | . . . 1 . Zone Layout 1 | . 1 . . . Fabricator Hacks . | . . . . . Repair Station Hacks . | . . . . . Recycling Unit Hacks . | . . . . . Scanalyzer . | . . . . . Garrison Access Hacks . | . . . . . Unauthorized Hacks . | . . . . . Terminals . | . . . . . Fabricators . | . . . . . Repair Stations . | . . . . . Recycling Units . | . . . . . Scanalyzers . | . . . . . Garrison Access . | . . . . . Data Cores Recovered . | . . . . . Used . | . . . . . Hacking Detections 2 | . 1 . . 1 Full Trace Events . | . . . . . Feedback Events . | . . . . . Feedback Blocked . | . . . . . Robot Schematics Acquired . | . . . . . Robots Built . | . . . . . Authchips . | . . . . . Time . | . . . . . Total Robot Build Rating . | . . . . . Part Schematics Acquired . | . . . . . Parts Built . | . . . . . Authchips . | . . . . . Time . | . . . . . Total Part Build Rating . | . . . . . Parts Repaired . | . . . . . Time . | . . . . . Parts Recycled . | . . . . . Recycled Matter . | . . . . . Retrieved Matter . | . . . . . Retrieved Components . | . . . . . Parts Scanalyzed . | . . . . . Part Schematics Acquired . | . . . . . Parts Damaged . | . . . . . Bothacking | -11 -10 -10 -9 -8 ------------ Run | Yrd Mat Min Mat Mat Used RIF Installer . | . . . . . Robots Hacked . | . . . . . Non-combat . | . . . . . Combat . | . . . . . Robot Hacks Applied . | . . . . . Relay Couplers Released . | . . . . . Fabnet Peak Effective % . | . . . . . Robots Rewired . | . . . . . Allies Hacked . | . . . . . Hacks Repelled . | . . . . . Allies | -11 -10 -10 -9 -8 -------- Run | Yrd Mat Min Mat Mat Total Allies . | . . . . . Largest Group . | . . . . . Highest-Rated Group . | . . . . . Highest-Rated Ally . | . . . . . Total Orders . | . . . . . Ally Attacks . | . . . . . Total Damage . | . . . . . Kills . | . . . . . Allies Corrupted . | . . . . . Allies Melted . | . . . . . Intel | -11 -10 -10 -9 -8 ------- Run | Yrd Mat Min Mat Mat Robot Analysis Total . | . . . . . Derelict Logs Recovered . | . . . . . Drone Launches . | . . . . . Drone Recoveries . | . . . . . Exploration | -11 -10 -10 -9 -8 ------------- Run | Yrd Mat Min Mat Mat Turns Passed 1167 | 183 337 238 230 179 Spaces Moved 816 | 167 212 137 161 139 Core 72 | 3 . . . 69 Treads . | . . . . . Legs 580 | . 212 137 161 70 Wheels 164 | 164 . . . . Hover . | . . . . . Flight . | . . . . . Fastest Speed 50 | 50 120 120 120 50 Average Speed 117 | 79 129 154 120 104 Slowest Speed 350 | 100 190 190 120 350 Overloaded Moves . | . . . . . Propulsion Burnouts . | . . . . . Robots Hopped . | . . . . . Cave-ins Triggered . | . . . . . Exploration Rate (%) 25 | 6 45 37 17 22 Regions Visited 4 Branch Regions 1 Pre-discovered Areas 1 | . . 1 . . Known Exits Taken . | . . . . . Unknown Exits Taken 4 | 1 1 1 1 . Scrap Searched 1 | . . 1 . . Spaces Dug . | . . . . . Terrain Destroyed 140 | . 52 43 27 18 Melee . | . . . . . Projectile . | . . . . . AOE 140 | . 52 43 27 18 Terrain Rammed . | . . . . . Walls Destroyed . | . . . . . Machines Disabled . | . . . . . Actions | -11 -10 -10 -9 -8 --------- Run | Yrd Mat Min Mat Mat Total 935 | 190 245 148 188 164 Wait 14 | . 1 . 13 . Move 812 | 166 211 136 160 139 Hop . | . . . . . Pick Up 18 | 4 8 1 2 3 Fast Attach 7 | 6 . . . 1 Attach 13 | 1 2 2 5 3 Detach . | . . . . . Swap 3 | . 3 . . . Drop 6 | . 4 . 1 1 Fire 50 | 13 16 7 7 7 Melee . | . . . . . Ram 3 | . . . . 3 Kick 9 | . . 2 . 7 Crush . | . . . . . Escape Stasis . | . . . . . Rewire . | . . . . . Trap . | . . . . . Miscellaneous . | . . . . . Route ------- -11/Scrapyard -10/Materials -10/Mines (discovered 2 exits: *Mat x2) -9/Materials (discovered 2 exits: *Mat / [*Sto]) -8/Materials History --------- Turn | Location | Event 22 | -11/Scrapyard | Discovered new exit (range 15) 184 | -11/Scrapyard | Entered Materials 311 | -10/Materials | Build established: Mutant 481 | -10/Materials | Discovered new exit (range 15) 521 | -10/Materials | Entered Mines 588 | -10/Mines | Discovered new exit (range 10) 596 | -10/Mines | Learned location of Storage (-9) 747 | -10/Mines | Discovered new exit (range 10) 759 | -10/Mines | Entered Materials 759 | -9/Materials | Evolved 2 slots: Propulsion x1, Utility x1 830 | -9/Materials | Discovered new exit (range 16) 919 | -9/Materials | Lost 3 parts (1n2w) 925 | -9/Materials | Discovered new exit (range 13) 989 | -9/Materials | Entered another Materials area 989 | -8/Materials | Evolved 2 slots: Power x1, Utility x1 1142 | -8/Materials | Core integrity fell below 50% 1149 | -8/Materials | Core integrity fell below 20% 1168 | -8/Materials | Destroyed by G-47 Trooper with Particle Gun Last Messages --------------- 01133_ W-25 Informer sends out distress signal. 01134_ Connecting with Terminal... 01135_ K-01 Serf collects debris. 01136_ O-16 Technician uses terminal to summon reinforcements. 01136_ ALERT: Hostiles spotted, dispatching reinforcements to Terminal M001. 01136_ O-16 Technician locks terminal. 01136_ T-07 Excavator is excavating. 01136_ K-01 Serf collects debris. [Achievement: Hunted] 01142_ K-01 Serf collects debris. 01143_ Acquired Reaction Control System. 01145_ Slammed into G-47 Trooper. 01147_ K-01 Serf collects debris. 01148_ Imp. Targeting Computer destroyed. 01153_ Slammed into A-02 Transporter. 01161_ Acquired Titanium Leg. 01165_ Kicked S-10 Pest. 01166_ Kicked S-10 Pest out of the way. Map ----- +----------------------------------------------------+ | ??????????# #???????????# #?????????????? | | ????????### #???????????# #?????????????? | | ????? " #???????????# #?????????????? | | ?????? """ #???????????# #?????????????? | | ???????#### """ #???????????# #?????????????? | | ??????????# """ #??????????##!#?????????????? | | ??????????# "" #??????????## ###???????????? | | ??????????# """ #??????????##!# #???????????? | | ??????????# "" #?????????##!%[ #???????????? | | ??????????# "" #?????????# =[!##???????????? | | ??????????# " #?????????# #???????????? | | ??????????# #?????????# #########???? | | ??????????# #?????# # # #???? | | ####+###### ############## # # """ #???? | | ## # # """ #???? | | ## # # # """ #???? | | ## # # + #???? | | ### ##### ## # # # """ #???? | | ??# ?????# ## # ] """ #???? | | ??#??????## ## ??# # # """ #???? | | ?????????#! #?? ????# # # #???? | | ?????????# #??##+############ ##########???? | | ?????????# ####u #????????????? | | ?????????# hgg #????????????? | | ?????????# #### s #????????????? | | ?????????#######??# ###@######## ##????????????? | | ??????????????????# # s s #???# ??????????????? | | ??????????????????# # #???# ??????????????? | | ????????????????? # #???# ??????????????? | | ???????????????? # #???# ??????????????? | | ???????????????! # #???????????????????? | | ??????????????#! # #???????????????????? | | ??????????????#! ########???????????????????? | | ??????????????##! #??????????????????????????? | | ???????????????#### #??????????????????????????? | | ?????????????????? #??????????????????????????? | | ?????????????????? #??????????????????????????? | | ?????????????????? #??????????????????????????? | | ??????????????????# ???????????????????????????? | | ?????????????????????????????????????????????????? | | ?????????????????????????????????????????????????? | | ?????????????????????????????????????????????????? | | ?????????????????????????????????????????????????? | | ?????????????????????????????????????????????????? | | ?????????????????????????????????????????????????? | | ?????????????????????????????????????????????????? | | ?????????????????????????????????????????????????? | | ?????????????????????????????????????????????????? | | ?????????????????????????????????????????????????? | | ?????????????????????????????????????????????????? | +----------------------------------------------------+ Best States ------------- Heat Dissipation 31 Energy Generation 10 Energy Capacity 125 Matter Stores 300 Matter Capacity 300 Sight Range 16 Terrain Scan Range 16 Terrain Scan Density 10 Core Shielding 20 Evasion (%) 55 Targeting Accuracy 6 Item Schematics ----------------- None Robot Schematics ------------------ None Fabricated ------------ Nothing Alien Tech Used ----------------- None Achievements -------------- Hey, That's Mine! Hunted Challenges ------------ None Game ------ Seed DrainedFocalDrive Manual? 0 Play Time 00:22:11 Cumulative 13.7 hours Start 2024.05.07 @ 22:09:07 End 2024.05.10 @ 22:23:26 Sessions 1 Manual Loads 0 Difficulty Rogue Special Mode None Game No. 31 Rogue 31 Adventurer 0 Explorer 0 Win Type - Total 0 Types 0/0/0/0/0/0/0/0/0 Lore% 15 Gallery% 13 Achievement% 13 Wizard Run 0 Options --------- Layout 1 ASCII 0 Keyboard 0 Movement Arrows Keybinds 0 Fullscreen 1 Font 24/Smallcaps Map View 50x40 Zoom Use 0% Tactical HUD 1 Map Filters NONE Filters NONE Steam 1 RUN: 47e558b9-20e2-4b9d-95c5-69102058ca52